bitfinex-derivatives/quotes_ETHF0:USTF0_20260226
["timestamp","ask_amount","ask_price","bid_price","bid_amount"]
[1772095664125,0.57471366,2052.9,2051.9,0.53302161]
[1772095667628,0.57471366,2052.9,2051.7,0.53302161]
[1772095667827,0.57471366,2052.8,2051.7,0.53302161]
[1772095670427,0.57471366,2052.8,2051.8,0.53302161]
[1772095670927,0.57471366,2052.6,2051.6,0.53302161]
[1772095676235,0.57471366,2052.6,2051.5,0.57962654]
[1772095678330,0.57471366,2052.6,2051.6,0.57962654]
[1772095678535,0.57471366,2052.6,2051.7,0.57962654]
[1772095678731,0.57471366,2052.6,2051.8,0.57962654]
[1772095678936,0.54638859,2052.7,2051.9,0.57962654]
[1772095681840,0.54638859,2052.9,2051.9,0.57962654]
[1772095682539,0.54638859,2052.9,2052.0,0.57962654]
[1772095683538,0.55050299,2053.0,2052.2,0.57962654]
[1772095687939,0.0041144,2053.0,2052.3,0.57962654]
[1772095689036,50.653,2053.7,2052.4,0.57962654]
[1772095689037,0.54638859,2053.4,2052.4,0.57962654]
[1772095689440,0.54638859,2053.4,2052.5,0.57962654]
[1772095690838,0.54638859,2053.4,2052.2,9.44263844]
[1772095690839,0.54638859,2053.4,2052.3,6.71157416]
[1772095691043,0.54638859,2053.4,2052.4,0.57962654]
[1772095695243,0.54638859,2053.4,2052.5,0.57962654]
[1772095695842,0.54638859,2053.4,2052.6,0.57962654]
[1772095696549,0.54638859,2053.4,2052.7,0.57962654]
[1772095696751,0.54638859,2053.5,2052.7,0.57962654]
[1772095698844,11.59694838,2054.5,2052.6,6.384]
[1772095699047,0.58028507,2055.3,2054.4,1.79476293]
[1772095699252,0.58028507,2055.1,2054.5,10.46967926]
[1772095699554,0.58028507,2055.1,2054.6,6.40788465]
[1772095699753,0.58114146,2054.9,2054.7,6.40788465]
[1772095699955,0.58114146,2054.9,2054.8,6.40788465]
[1772095700148,0.54638859,2055.5,2054.8,6.78174322]
[1772095700449,0.54638859,2055.5,2054.4,11.02903761]
[1772095700450,0.54638859,2055.5,2054.4,6.967243]
[1772095700651,0.54638859,2055.3,2054.4,6.967243]
[1772095700853,0.54638859,2055.3,2054.4,0.583243]
[1772095701151,0.54638859,2055.1,2054.4,0.583243]
[1772095701552,8.04336691,2055.0,2054.4,0.583243]
[1772095701753,0.54638859,2055.3,2054.4,0.583243]
[1772095701954,0.54638859,2055.1,2054.4,0.583243]
[1772095702558,0.54638859,2054.9,2054.4,0.00381474]
[1772095703055,0.54638859,2054.7,2054.2,0.57962654]
[1772095704258,8.04336691,2054.6,2054.2,0.58426425]
[1772095705365,0.54638859,2054.5,2054.1,6.381]
[1772095706064,2.92877527,2054.3,2054.1,4.25839056]
[1772095706262,2.92877527,2054.3,2053.7,2.91928772]
[1772095706464,2.92877527,2054.1,2053.7,2.9249676]
[1772095707070,2.92877527,2054.4,2053.7,2.9249676]
[1772095708366,2.92877527,2054.2,2053.7,2.9249676]
[1772095709065,2.92877527,2054.2,2053.8,2.91928772]
[1772095710766,2.92877527,2054.4,2053.8,2.91928772]
[1772095711269,2.92877527,2054.4,2053.8,6.98108233]
[1772095712269,2.92877527,2054.4,2053.9,7.0059372]
[1772095712466,2.92877527,2054.4,2054.0,7.0059372]
[1772095712767,2.92877527,2054.4,2053.8,6.98108233]
[1772095712962,2.92877527,2054.4,2053.9,7.00680775]
[1772095713164,2.92877527,2054.4,2054.0,7.00680775]
[1772095713367,2.92877527,2054.4,2054.1,6.40581548]
[1772095713567,2.92877527,2054.4,2053.8,6.98108233]
[1772095713769,2.92877527,2054.4,2053.9,9.92857628]
[1772095713966,2.92877527,2054.4,2054.0,7.00928856]
[1772095714168,2.92877527,2054.4,2054.1,6.40808297]
[1772095714469,2.92877527,2054.4,2053.9,2.91928772]
[1772095714673,2.92877527,2054.4,2054.0,7.01104157]
[1772095714871,8.04336691,2054.6,2053.9,2.91928772]
[1772095714872,10.69494242,2054.1,2053.9,2.91928772]
[1772095715074,10.4380278,2054.1,2054.0,7.01104287]
[1772095716770,21.41668706,2054.1,2054.0,4.33331991]
[1772095717375,18.48139471,2054.1,2054.0,7.29386004]
[1772095717571,8.0176284,2054.1,2054.0,7.29386004]
[1772095717775,2.14758978,2054.1,2054.0,4.33331991]
[1772095718274,2.93529235,2054.3,2054.0,4.33331991]
[1772095718476,8.04336691,2054.2,2053.9,13.40233474]
[1772095720074,2.93529235,2054.2,2053.9,13.40233474]
[1772095720468,2.93529235,2054.6,2053.8,6.09269192]
[1772095720669,2.93529235,2054.3,2053.9,2.96054013]
[1772095722677,2.93529235,2054.1,2053.4,6.09269192]
[1772095722871,2.93529235,2054.1,2052.2,4.881]
[1772095722872,2.93529235,2054.1,2053.1,2.96054013]
[1772095723074,2.93529235,2053.9,2053.1,6.379]
[1772095723469,2.93529235,2053.7,2053.1,6.379]
[1772095723676,2.93529235,2053.7,2053.1,6.38295395]
[1772095728582,2.93529235,2053.5,2053.1,9.34349408]
[1772095728782,2.93529235,2053.5,2053.2,6.81388761]
[1772095729078,2.93529235,2054.0,2053.4,2.96054013]
[1772095729281,2.93529235,2053.9,2053.5,6.81388761]
[1772095729481,2.93529235,2053.8,2053.6,6.81388761]
[1772095729684,2.93529235,2053.8,2053.3,2.96054013]
[1772095729880,2.93529235,2053.8,2053.4,9.07333618]
[1772095730073,10.97865926,2053.7,2053.5,6.11279605]
[1772095730278,2.93529235,2053.7,2053.6,6.11279605]
[1772095731582,2.32914186,2053.7,2053.6,6.11279605]
[1772095731779,8.04336691,2053.7,2053.6,6.11279605]
[1772095731978,2.93529235,2054.1,2053.7,2.96054013]
[1772095732179,8.04336691,2054.0,2053.8,9.07333618]
[1772095732383,2.93529235,2054.2,2053.9,6.11279605]
[1772095732580,2.93529235,2054.2,2053.8,2.96054013]
[1772095732781,2.93529235,2054.2,2053.9,6.11512824]
[1772095732981,2.93529235,2054.2,2053.8,2.96054013]
[1772095733182,2.93529235,2054.2,2053.9,6.11511263]
[1772095733383,2.93529235,2054.2,2054.0,6.11511263]
[1772095733586,2.93529235,2054.2,2053.8,2.96054013]
[1772095733782,2.93529235,2054.2,2053.9,6.11694894]
[1772095733983,2.93529235,2054.2,2053.8,2.96054013]
[1772095734181,2.93529235,2054.0,2053.9,2.76408271]
[1772095734383,2.93529235,2054.0,2053.7,6.381]
[1772095734785,2.93529235,2054.0,2053.7,9.34154013]
[1772095735080,2.93529235,2053.9,2053.5,6.381]
[1772095735285,2.93529235,2053.9,2053.4,9.34154013]
[1772095735485,2.93529235,2053.9,2053.5,2.96054013]
[1772095737089,3.58777096,2054.6,2053.7,3.49796075]
[1772095737284,3.59191098,2054.7,2054.0,3.49796075]
[1772095737584,3.59191098,2054.7,2054.1,9.87896075]
[1772095739389,3.59191098,2054.7,2054.2,3.49796075]
[1772095740591,3.58777096,2055.6,2054.2,3.49796075]
[1772095740891,3.58777096,2055.6,2054.5,3.49796075]
[1772095741091,3.58777096,2055.6,2054.7,3.49796075]
[1772095741586,3.59326102,2055.6,2054.9,3.49796075]
[1772095741791,3.59326102,2055.6,2055.0,0.59314557]
[1772095741992,3.59326102,2055.6,2055.1,0.59314557]
[1772095742195,3.59326102,2055.6,2054.7,0.0060479]
[1772095742392,3.59326102,2055.6,2054.8,6.38]
[1772095742587,3.59326102,2055.6,2054.9,3.49796075]
[1772095742793,3.58777096,2055.8,2054.9,3.49796075]
[1772095743689,3.59259849,2055.8,2054.9,3.49796075]
[1772095746293,1.23301955,2056.0,2054.9,3.49796075]
[1772095746593,0.09339269,2056.0,2055.1,3.49796075]
[1772095746793,3.58777096,2056.4,2055.2,12.17135185]
[1772095746993,4.30574405,2056.4,2055.4,3.49796075]
[1772095747190,4.30574405,2056.4,2055.6,3.49796075]
[1772095748594,4.30574405,2056.4,2055.1,9.87596075]
[1772095748899,4.30574405,2056.4,2055.2,9.28242418]
[1772095749097,3.58777096,2056.2,2055.1,6.378]
[1772095749398,3.58777096,2056.0,2055.1,6.378]
[1772095749898,3.58777096,2056.0,2055.2,3.49796075]
[1772095750794,3.58777096,2056.0,2054.9,3.49796075]
[1772095750998,3.58777096,2056.0,2054.8,6.377]
[1772095751393,3.58777096,2056.0,2054.8,9.87496075]
[1772095751595,3.58777096,2056.0,2054.8,6.377]
[1772095751793,3.58777096,2056.0,2054.8,9.87496075]
[1772095751993,3.58777096,2056.0,2055.0,3.49796075]
[1772095752197,3.58777096,2056.0,2055.2,3.49796075]
[1772095752398,3.58777096,2056.0,2055.3,3.49796075]
[1772095754397,3.58777096,2056.0,2054.9,3.49796075]
[1772095754701,3.58777096,2056.0,2055.0,0.58406858]
[1772095754900,3.58777096,2056.0,2055.1,0.58406858]
[1772095755101,3.58777096,2056.0,2054.9,3.49796075]
[1772095755304,3.58777096,2056.0,2055.0,0.58410213]
[1772095755504,3.58777096,2056.0,2055.1,0.58410213]
[1772095755702,3.58777096,2056.0,2054.9,3.49796075]
[1772095755903,3.58777096,2056.0,2055.0,4.08232369]
[1772095756103,3.58777096,2056.0,2055.1,4.08232369]
[1772095756295,3.58777096,2056.0,2055.2,4.08232369]
[1772095756501,3.58777096,2056.0,2055.2,3.49796075]
[1772095757298,3.58777096,2056.2,2055.4,3.49796075]
[1772095757603,3.58777096,2056.2,2055.6,3.49796075]
[1772095757805,3.58777096,2056.2,2055.6,9.87396075]
[1772095758006,3.58777096,2056.2,2055.7,3.49796075]
[1772095758202,4.30574405,2056.4,2055.7,3.49796075]
[1772095758401,4.30574405,2056.4,2055.8,4.08231685]
[1772095758699,4.30574405,2056.4,2055.6,3.49796075]
[1772095758900,4.30574405,2056.4,2055.7,0.58439257]
[1772095759095,4.30574405,2056.4,2055.8,0.58439257]
[1772095759294,4.30574405,2056.4,2055.6,3.49796075]
[1772095759502,4.30574405,2056.4,2055.7,0.58447073]
[1772095759703,4.30574405,2056.4,2055.4,9.87396075]
[1772095761209,4.30574405,2056.4,2055.5,5.78618631]
[1772095761400,4.30574405,2056.4,2055.4,9.87396075]
[1772095761604,4.30574405,2056.4,2055.5,9.28403629]
[1772095761898,4.30574405,2056.4,2055.5,3.49796075]
[1772095762104,4.30574405,2056.4,2055.3,9.87396075]
[1772095762298,4.30574405,2056.4,2055.4,9.28623507]
[1772095762502,4.30574405,2056.4,2055.5,5.78827432]
[1772095762702,4.30574405,2056.4,2055.4,3.49796075]
[1772095762903,4.30574405,2056.4,2055.3,6.376]
[1772095763102,4.30574405,2056.4,2055.4,5.78960801]
[1772095763304,4.30574405,2056.4,2055.2,9.87296075]
[1772095763504,3.58777096,2056.2,2055.3,9.29116711]
[1772095763801,3.58777096,2056.2,2055.4,5.79320636]
[1772095764005,3.58777096,2056.2,2055.1,3.49796075]
[1772095764206,3.58777096,2056.2,2055.2,5.7944826]
[1772095764406,3.58777096,2056.2,2055.3,5.7944826]
[1772095764607,3.58777096,2056.2,2055.4,3.49796075]
[1772095766210,3.58777096,2056.2,2055.5,5.81315659]
[1772095766409,3.58777096,2056.2,2055.4,3.49796075]
[1772095766610,3.58777096,2056.2,2055.5,5.81373783]
[1772095766914,3.51866768,2056.0,2055.0,3.58225713]
[1772095767209,3.51866768,2056.0,2054.7,7.62195774]
[1772095767210,3.51866768,2055.8,2054.8,16.04994905]
[1772095767409,3.51866768,2055.7,2054.9,3.58225713]
[1772095769611,3.51866768,2055.7,2054.8,3.58225713]
[1772095770104,3.51866768,2055.7,2054.5,6.375]
[1772095770105,3.51866768,2055.5,2054.5,5.95969276]
[1772095770314,3.51866768,2055.5,2054.3,3.58225713]
[1772095771112,3.52263221,2055.5,2054.3,3.58603732]
[1772095771710,3.51866768,2055.3,2054.4,0.56855174]
[1772095771915,3.51866768,2055.1,2054.5,4.15080887]
[1772095772114,3.51866768,2055.1,2054.6,4.15080887]
[1772095772317,3.51866768,2055.1,2054.7,0.56855174]
[1772095772618,3.51866768,2055.1,2054.8,0.56855174]
[1772095772817,3.51866768,2055.1,2054.9,0.56855174]
[1772095773010,3.51866768,2055.1,2054.4,3.58225713]
[1772095773211,13.39666768,2055.2,2054.4,3.58225713]
[1772095773415,0.72017754,2055.3,2054.4,3.58225713]
[1772095773818,0.72017754,2055.3,2054.6,3.58225713]
[1772095775520,4.47587697,2055.3,2054.6,3.58225713]
[1772095778718,4.47587697,2055.3,2054.4,9.94366711]
[1772095778923,4.47587697,2055.3,2054.5,3.56766711]
[1772095780627,4.47587697,2055.3,2054.7,3.56766711]
[1772095783431,4.47587697,2055.3,2054.8,3.56766711]
[1772095784932,4.47587697,2055.3,2054.9,0.55900327]
[1772095785130,4.47587697,2055.3,2054.6,4.05952122]
[1772095785531,4.47587697,2055.3,2054.6,3.56766711]
[1772095789338,4.47587697,2055.3,2054.7,3.56766711]
[1772095792242,4.47587697,2055.3,2054.7,7.62718833]
[1772095792938,4.47587697,2055.3,2054.7,3.56766711]
[1772095793444,4.47587697,2055.3,2054.7,7.62718833]
[1772095796346,4.47587697,2055.3,2054.8,7.50517178]
[1772095797148,4.47587697,2055.3,2054.9,0.55784973]
[1772095797349,4.47587697,2055.3,2055.0,0.55784973]
[1772095797550,4.47587697,2055.3,2055.1,0.55784973]
[1772095797751,4.47587697,2055.3,2055.2,0.55800349]
[1772095798350,4.47587697,2055.3,2055.2,0.32738714]
[1772095798851,4.47587697,2055.3,2054.8,4.05952122]
[1772095800445,4.47587697,2055.3,2054.6,9.56722147]
[1772095800446,3.41137674,2055.2,2054.9,7.50517178]
[1772095800648,0.55422117,2055.3,2055.0,3.44565056]
[1772095800951,3.41534127,2055.5,2055.0,3.44565056]
[1772095800952,3.41534127,2055.5,2055.0,7.50517178]
[1772095801548,3.41534127,2055.5,2055.1,3.44565056]
[1772095802150,0.7301518,2055.8,2055.1,3.44565056]
[1772095802451,3.65866415,2055.8,2055.5,3.44565056]
[1772095802652,0.24728741,2055.8,2055.5,3.44565056]
[1772095802953,3.41137674,2056.0,2055.6,3.44565056]
[1772095803154,0.00208337,2056.0,2055.6,3.44565056]
[1772095804661,3.41346011,2056.0,2055.5,4.05952122]
[1772095804851,3.41346011,2056.0,2055.4,7.50517178]
[1772095805051,3.41346011,2056.0,2055.5,3.44565056]
[1772095806153,3.41346011,2056.0,2055.6,3.44565056]
[1772095806755,0.00208337,2056.0,2055.6,3.44565056]
[1772095808355,3.41346011,2056.0,2055.4,7.50517178]
[1772095808554,3.41137674,2055.9,2055.3,7.50517178]
[1772095808754,4.12855778,2055.9,2055.3,7.50517178]
[1772095808955,4.12855778,2055.9,2055.0,3.44565056]
[1772095810959,4.12855778,2055.9,2055.1,3.97593836]
[1772095811158,4.12855778,2055.9,2055.2,0.5302878]
[1772095811365,4.12855778,2055.9,2055.3,0.5302878]
[1772095811557,4.12855778,2055.9,2054.9,3.44565056]
[1772095812262,4.12855778,2055.9,2055.0,3.44565056]
[1772095815060,3.41137674,2055.9,2055.0,3.44565056]
[1772095822164,9.87308337,2056.0,2055.2,3.44565056]
[1772095822365,9.87308337,2056.0,2055.4,3.44565056]
[1772095825463,0.00208337,2056.0,2055.4,3.44565056]
[1772095826063,0.00208337,2056.0,2055.5,3.28932467]
[1772095830267,3.45180479,2056.2,2055.5,3.28932467]
[1772095832575,3.45180479,2056.2,2055.4,6.12157091]
[1772095832777,3.45180479,2056.2,2055.4,3.28932467]
[1772095833077,3.45180479,2056.2,2055.5,3.28932467]
[1772095833278,3.45180479,2056.2,2055.7,1.19219256]
[1772095833574,13.31480479,2056.4,2055.9,1.19219256]
[1772095833774,13.31480479,2056.4,2056.0,3.28932467]
[1772095834170,3.45180479,2056.3,2055.9,0.00526041]
[1772095834371,3.45180479,2056.3,2055.5,9.41089558]
[1772095834577,3.45180479,2056.3,2055.5,3.28932467]
[1772095835379,3.4570652,2056.3,2055.6,3.06405972]
[1772095838284,3.4570652,2056.3,2055.5,3.06791825]
[1772095839780,3.4570652,2056.3,2055.5,0.00385853]
[1772095839984,3.4570652,2056.3,2055.0,3.06405972]
[1772095840179,3.14461414,2056.1,2054.9,3.06405972]
[1772095840585,3.14461414,2055.9,2054.9,3.06405972]
[1772095840885,3.14461414,2055.7,2054.9,3.06928836]
[1772095851191,9.891,2055.8,2054.9,3.06928836]
[1772095851192,3.14461414,2055.5,2054.9,3.06928836]
[1772095853990,13.12561414,2055.4,2054.9,3.06928836]
[1772095855995,3.01962475,2055.6,2054.9,3.06928836]
[1772095856295,3.01962475,2055.6,2054.8,3.15057634]
[1772095856296,3.01962475,2055.5,2054.8,3.15057634]
[1772095857195,3.01962475,2055.5,2054.8,3.15540069]
[1772095860697,3.01962475,2055.3,2054.8,3.15540069]
[1772095860995,13.02762475,2055.2,2054.8,3.15540069]
[1772095861496,10.008,2055.2,2054.8,3.15540069]
[1772095861692,10.021,2055.5,2054.8,3.15540069]
[1772095862096,8.70433594,2055.5,2054.8,3.15540069]
[1772095862596,11.72396069,2055.5,2054.8,3.15540069]
[1772095862897,3.01962475,2055.4,2054.8,3.15540069]
[1772095863294,8.70433594,2055.5,2054.8,3.15540069]
[1772095863595,11.72396069,2055.5,2054.8,3.15540069]
[1772095864793,3.01962475,2055.4,2054.8,3.15540069]
[1772095868907,3.01962475,2055.4,2055.0,3.15057634]
[1772095869503,3.01962475,2055.8,2055.2,3.15057634]
[1772095869998,3.01962475,2056.0,2055.2,3.15057634]
[1772095870604,3.01962475,2056.0,2055.3,3.15057634]
[1772095872901,3.01962475,2056.0,2055.5,3.15057634]
[1772095874801,3.01962475,2056.8,2056.0,1.31475277]
[1772095875006,3.01962475,2056.8,2056.3,4.06320321]
[1772095875202,3.01962475,2056.8,2056.1,5.37795598]
[1772095875407,3.01962475,2056.8,2056.1,1.31475277]
[1772095875809,3.01962475,2056.6,2056.1,1.31985134]
[1772095876009,3.01962475,2056.6,2056.1,0.00509857]
[1772095876310,3.01962475,2056.6,2056.1,1.30479933]
[1772095879213,0.08464754,2057.4,2056.3,1.67833976]
[1772095879514,3.01962475,2057.5,2056.6,1.67833976]
[1772095879708,3.01962475,2057.3,2056.6,1.67833976]
[1772095880208,3.02246769,2057.3,2056.6,1.67833976]
[1772095882615,3.02246769,2057.3,2056.4,1.61253607]
[1772095884911,3.01962475,2058.5,2057.0,1.51014516]
[1772095885115,3.01962475,2058.5,2057.2,1.51014516]
[1772095885412,3.01962475,2058.5,2057.4,1.51014516]
[1772095886515,3.18376239,2058.9,2057.4,1.51014516]
[1772095887314,3.18376239,2058.9,2057.5,1.43277915]
[1772095887514,3.18376239,2058.9,2057.7,1.43277915]
[1772095887819,3.18376239,2058.9,2057.7,1.43700211]
[1772095888815,3.18376239,2058.9,2057.7,1.45833385]
[1772095891011,3.18376239,2058.9,2057.7,0.00422296]
[1772095891221,47.409,2059.0,2057.7,0.00422296]
[1772095891222,3.18376239,2058.7,2057.7,0.00422296]
[1772095894923,3.18376239,2058.5,2057.0,1.37068882]
[1772095895126,2.95982576,2058.3,2057.0,1.37068882]
[1772095895821,2.9639072,2058.3,2057.0,1.37610702]
[1772095898825,2.9639072,2058.3,2057.1,1.33614143]
[1772095899330,2.9639072,2058.3,2057.4,1.31906418]
[1772095900531,0.00408144,2058.3,2057.4,1.31906418]
[1772095901027,2.9639072,2058.3,2057.4,1.31906418]
[1772095903524,2.9639072,2058.3,2057.2,1.24595363]
[1772095903831,3.2067972,2058.3,2057.0,1.21713712]
[1772095904025,2.95982576,2058.2,2057.0,0.0054182]
[1772095904431,0.24291,2058.1,2057.0,0.0054182]
[1772095904731,2.95982576,2058.0,2057.0,0.0054182]
[1772095904927,2.95982576,2057.8,2057.0,0.0054182]
[1772095906029,2.95982576,2057.7,2057.0,0.0054182]
[1772095907535,2.95982576,2057.7,2057.0,1.15645554]
[1772095908632,2.95982576,2057.7,2057.0,0.0054182]
[1772095909829,2.95982576,2057.7,2056.6,4.06320321]
[1772095910035,2.95982576,2057.7,2056.6,5.26708182]
[1772095910537,2.95982576,2057.7,2056.6,4.06320321]
[1772095910737,2.95982576,2057.7,2056.6,1.18858001]
[1772095910933,2.95982576,2057.7,2056.6,1.19443379]
[1772095913540,2.95982576,2057.7,2056.6,5.257637]
[1772095913740,2.95982576,2057.7,2056.6,0.00585378]
[1772095914040,2.95982576,2057.5,2056.6,0.00585378]
[1772095914239,5.26540504,2057.6,2056.6,0.00585378]
[1772095914240,2.95982576,2057.3,2056.6,0.00585378]
[1772095914641,2.95982576,2057.3,2056.3,1.17536457]
[1772095915742,2.95982576,2057.3,2056.3,1.1806545]
[1772095916241,2.95982576,2057.3,2056.3,0.00528993]
[1772095921834,51.066,2057.4,2055.9,1.0821261]
[1772095921835,2.79401026,2057.1,2055.9,1.0821261]
[1772095922039,2.79401026,2056.9,2055.9,1.0821261]
[1772095922234,2.79401026,2056.9,2055.8,1.08076794]
[1772095922735,2.79401026,2056.9,2055.8,1.08601473]
[1772095925943,2.79401026,2057.2,2056.0,0.96639557]
[1772095926346,2.79401026,2057.2,2055.8,0.97164236]
[1772095930353,2.79401026,2057.0,2055.8,0.00524679]
[1772095930551,2.79401026,2056.8,2055.8,0.96078038]
[1772095930850,2.7978577,2056.8,2055.8,0.96078038]
[1772095935351,2.79401026,2056.6,2055.8,0.00524679]
[1772095935557,2.79401026,2056.6,2055.5,0.86074212]
[1772095936452,2.79401026,2056.6,2055.5,0.86703325]
[1772095938057,2.79401026,2056.4,2055.6,0.84546294]
[1772095938356,2.79401026,2056.6,2055.7,0.84546294]
[1772095939258,2.79401026,2056.6,2055.7,4.90866615]
[1772095939458,2.79401026,2056.6,2055.8,1.0563021]
[1772095943263,2.79401026,2056.6,2055.8,5.11950531]
[1772095943462,2.79401026,2056.6,2055.9,0.97765645]
[1772095948265,2.79401026,2056.6,2056.0,0.91656434]
[1772095948461,2.79401026,2056.6,2055.9,4.06320321]
[1772095948767,2.79401026,2056.6,2055.7,4.06320321]
[1772095948966,2.79401026,2056.6,2055.6,6.9971548]
[1772095948967,2.79401026,2056.6,2055.6,4.96555319]
[1772095949167,2.56718707,2056.5,2055.5,4.06949434]
[1772095949367,2.56718707,2056.4,2055.5,0.00629113]
[1772095950265,2.56718707,2056.3,2055.5,0.00629113]
[1772095950467,2.56718707,2056.1,2055.5,0.00629113]
[1772095953973,2.56718707,2056.1,2055.0,4.87976652]
[1772095954170,2.56718707,2056.1,2055.0,0.81656331]
[1772095954571,2.56718707,2056.0,2055.0,0.81656331]
[1772095954768,2.56718707,2056.0,2055.0,0.0043594]
[1772095955970,2.56718707,2056.0,2055.0,0.79299572]
[1772095960777,2.56718707,2056.0,2055.1,0.71596836]
[1772095967987,2.56718707,2056.0,2055.0,0.59396342]
[1772095972083,2.56718707,2056.0,2055.1,0.57316368]
[1772095975185,2.56718707,2056.0,2055.2,0.52861688]
[1772095978090,2.56718707,2056.0,2055.2,4.58329851]
[1772095978290,2.56718707,2056.0,2055.2,4.05468163]
[1772095980390,2.56718707,2056.0,2055.2,4.51779364]
[1772095983992,2.56718707,2056.0,2055.3,0.42309512]
[1772095984893,2.35085594,2056.2,2055.4,0.40864006]
[1772095985190,2.35085594,2056.4,2055.7,0.42524073]
[1772095985390,12.73485594,2056.5,2055.8,0.41235781]
[1772095986494,2.35085594,2056.5,2055.8,0.41235781]
[1772095987493,2.35085594,2056.7,2055.9,0.3989331]
[1772095987691,2.35085594,2056.7,2056.0,0.3989331]
[1772095993603,0.00384744,2056.8,2056.0,0.3989331]
[1772095993803,2.35470338,2056.8,2056.0,0.3989331]
[1772095994402,2.35470338,2056.8,2055.7,6.09480482]
[1772095994403,2.35470338,2056.8,2055.7,0.24858203]
[1772095997807,2.35470338,2056.8,2055.5,4.21331521]
[1772095998007,2.36797,2056.7,2055.5,0.16237269]
[1772095998202,2.36797,2056.5,2055.5,0.16237269]
[1772095998708,2.36797,2056.5,2055.4,0.15284264]
[1772095999105,2.36861626,2056.4,2055.4,0.15284264]
[1772095999706,2.36861626,2056.4,2055.4,6.52684264]
[1772095999908,2.36861626,2056.4,2055.5,0.13918497]
[1772096000102,2.36861626,2056.4,2055.6,0.13394367]
[1772096001409,2.36861626,2056.4,2055.7,0.12031403]
[1772096002909,2.36861626,2056.4,2055.4,0.13341053]
[1772096003410,2.36861626,2056.4,2055.3,0.12117098]
[1772096004911,2.36861626,2056.4,2055.1,0.08266612]
[1772096005608,6.43335404,2056.4,2055.1,0.08266612]
[1772096005808,2.36617518,2056.3,2055.1,0.08266612]
[1772096007510,2.39011669,2056.1,2055.1,0.08266612]
[1772096007820,2.39011669,2055.9,2055.1,0.08266612]
[1772096021527,2.39011669,2055.9,2055.0,0.0043594]
[1772096025536,4.06473778,2056.1,2055.0,0.0043594]
[1772096025537,2.41320665,2055.7,2055.0,0.0043594]
[1772096034342,2.41225198,2055.5,2055.0,0.0043594]
[1772096034534,2.41225198,2055.5,2055.1,1.19306559]
[1772096035445,2.37599002,2055.9,2055.3,1.19306559]
[1772096035742,2.37599002,2055.9,2055.6,1.19306559]
[1772096036445,2.15206286,2056.0,2055.6,3.2058669]
[1772096036743,2.15206286,2056.0,2055.7,2.01280131]
[1772096039045,2.15206286,2056.3,2055.9,2.01280131]
[1772096040345,2.15206286,2056.6,2055.9,2.01280131]
[1772096040538,2.15206286,2056.4,2055.6,2.01280131]
[1772096040743,2.15206286,2056.2,2055.3,8.38780131]
[1772096040940,2.15206286,2056.2,2055.3,6.375]
[1772096041341,2.15206286,2056.0,2055.0,1.19742499]
[1772096041646,2.15206286,2056.0,2055.1,2.01280131]
[1772096041849,2.15206286,2055.8,2055.1,2.01280131]
[1772096063368,2.15206286,2055.8,2055.2,2.01280131]
[1772096066171,5.95205181,2055.7,2055.2,2.01280131]
[1772096066370,2.23811452,2055.6,2055.2,2.01280131]
[1772096067072,2.23811452,2055.9,2055.2,2.01280131]
[1772096067273,2.23811452,2055.7,2055.2,2.01280131]
[1772096070176,6.3028523,2055.9,2055.2,2.01280131]
[1772096070382,2.23811452,2055.7,2055.2,2.01280131]
[1772096071082,8.2328603,2055.6,2055.2,2.01280131]
[1772096071285,2.23811452,2055.6,2055.2,2.01280131]
[1772096076992,2.23811452,2055.6,2055.0,2.08190651]
[1772096077192,2.00465852,2055.7,2055.3,2.07754711]
[1772096077394,6.17269675,2055.6,2055.3,2.07754711]
[1772096077586,2.00465852,2055.7,2055.3,2.07754711]
[1772096077782,6.0693963,2055.9,2055.4,1.19289099]
[1772096077987,5.94678964,2056.1,2055.8,1.19289099]
[1772096078189,2.00465852,2056.1,2055.8,3.2704381]
[1772096078492,2.00465852,2056.1,2055.8,2.07754711]
[1772096079592,2.00465852,2056.1,2055.4,9.6454381]
[1772096079792,2.00465852,2056.1,2055.5,2.07754711]
[1772096080689,2.00465852,2056.1,2055.4,6.375]
[1772096080894,2.00465852,2056.1,2055.5,2.07754711]
[1772096096402,2.00465852,2056.1,2055.1,2.40553019]
[1772096096607,2.00465852,2056.1,2055.2,8.77953019]
[1772096096910,2.28755749,2055.9,2055.3,2.40553019]
[1772096097607,1.19240492,2056.3,2055.2,6.374]
[1772096097608,2.28755749,2055.7,2055.2,6.374]
[1772096098013,2.28755749,2055.7,2055.2,8.77953019]
[1772096098512,2.28755749,2055.7,2055.3,2.40553019]
[1772096099005,2.28755749,2056.1,2055.3,2.40553019]
[1772096099205,2.28755749,2055.9,2055.3,2.40553019]
[1772096099402,2.28755749,2055.7,2055.3,2.40553019]
[1772096100509,2.28755749,2056.1,2055.3,2.40553019]
[1772096100704,8.34082943,2056.0,2055.3,2.40553019]
[1772096100909,2.28755749,2056.0,2055.3,2.40553019]
[1772096101512,2.28755749,2056.3,2055.3,2.40553019]
[1772096101713,6.06161357,2056.4,2055.4,2.40553019]
[1772096101714,2.28755749,2056.1,2055.4,2.40553019]
[1772096102412,2.28755749,2056.4,2055.4,2.40553019]
[1772096102607,2.28755749,2056.2,2055.4,2.40553019]
[1772096102808,2.28755749,2056.3,2055.4,2.40553019]
[1772096104814,6.06161357,2056.7,2055.7,2.40553019]
[1772096104815,2.28755749,2056.5,2055.7,2.40553019]
[1772096105016,2.28755749,2056.5,2055.9,2.40553019]
[1772096107316,2.28755749,2056.5,2055.8,6.374]
[1772096107618,2.28755749,2056.5,2055.8,8.77953019]
[1772096108115,2.28755749,2056.5,2055.9,2.40553019]
[1772096112020,5.99390339,2056.4,2055.6,2.40553019]
[1772096112215,2.28755749,2056.2,2055.6,2.40553019]
[1772096112524,2.28755749,2056.2,2055.4,8.77853019]
[1772096113625,2.28755749,2056.2,2055.5,2.40553019]
[1772096115619,2.28755749,2056.2,2055.4,6.373]
[1772096115925,2.28755749,2056.2,2055.4,8.77853019]
[1772096116124,2.28755749,2056.0,2055.4,8.77853019]
[1772096117520,2.28755749,2056.0,2055.5,2.40553019]
[1772096122325,2.28755749,2056.0,2055.4,6.373]
[1772096122532,2.28755749,2056.0,2055.4,8.77703033]
[1772096123932,2.28755749,2056.0,2055.5,2.37928717]
[1772096132148,2.28755749,2056.0,2055.4,6.373]
[1772096132549,2.28755749,2056.0,2055.3,2.26275888]
[1772096132947,2.17889443,2055.8,2055.3,2.26275888]
[1772096133750,2.17889443,2055.8,2055.2,6.374]
[1772096134051,2.17889443,2055.8,2055.3,2.26275888]
[1772096136651,2.11494302,2056.0,2055.3,2.26275888]
[1772096136852,8.39259489,2055.9,2055.3,2.26275888]
[1772096137046,2.11494302,2055.9,2055.3,2.26275888]
[1772096138149,8.65431471,2055.8,2055.3,2.26275888]
[1772096138349,2.11494302,2055.8,2055.3,2.26275888]
[1772096140647,4.07625808,2056.1,2055.3,2.26275888]
[1772096140847,6.54401085,2056.0,2055.3,2.26275888]
[1772096141047,6.54401085,2055.9,2055.3,2.26275888]
[1772096141243,6.54401085,2055.8,2055.3,2.26275888]
[1772096141455,2.11494302,2056.0,2055.3,2.26275888]